fUSD/lending_fUSD_20250630
["ID","MTS","AMOUNT","RATE_DAILY","PERIOD"]
[368676301,1751291925553,-490.0,0.00013999,2]
[368676302,1751291925564,-1085.88,0.00013999,2]
[368676303,1751291925574,-627.25,0.00013999,2]
[368676304,1751291925584,-490.0,0.00013999,2]
[368676305,1751291925594,-959.17,0.00013999,2]
[368676306,1751291925605,-490.0,0.00013999,2]
[368676307,1751291925614,-490.0,0.00013999,2]
[368676308,1751291925624,-490.0,0.00013999,2]
[368676309,1751291925634,-362.00027426,0.00013999,2]
[368676310,1751291925668,-127.99972574,0.00013999,2]
[368676311,1751291925679,-490.0,0.00013999,2]
[368676312,1751291925689,-490.0,0.00013999,2]
[368676313,1751291925700,-637.59604517,0.00013999,2]
[368676314,1751291925711,-490.0,0.00013999,2]
[368676315,1751291925720,-1479.37,0.00013999,2]
[368676316,1751291925730,-1004.14,0.00013999,2]
[368676317,1751291925740,-490.0,0.00013999,2]
[368676318,1751291925750,-572.66,0.00013999,2]
[368676319,1751291925760,-490.0,0.00013999,2]
[368676320,1751291925770,-548.16570748,0.00013999,2]
[368676321,1751291925780,-490.0,0.00013999,2]
[368676322,1751291925790,-490.0,0.00013999,2]
[368676323,1751291925799,-1955.17,0.00013999,2]
[368676324,1751291925810,-244.89852161,0.00013999,2]
[368676325,1751291925891,-945.69147839,0.00013999,2]
[368676326,1751291925901,-419.16940937,0.00013999,2]
[368676327,1751291925911,-490.0,0.00013999,2]
[368676328,1751291925921,-1567.51,0.00013999,2]
[368676329,1751291925931,-490.0,0.00013999,2]
[368676330,1751291925941,-490.0,0.00013999,2]
[368676331,1751291925951,-490.0,0.00013999,2]
[368676332,1751291925962,-490.0,0.00013999,2]
[368676333,1751291925972,-856.67,0.00013999,2]
[368676334,1751291925983,-1226.62,0.00013999,2]
[368676335,1751291925992,-1021.32,0.00013999,2]
[368676336,1751291926003,-965.08,0.00013999,2]
[368676337,1751291926012,-547.93911224,0.00013999,2]
[368676338,1751291926066,-1726.68088776,0.00013999,2]
[368676339,1751291926076,-574.39,0.00013999,2]
[368676340,1751291926088,-853.24,0.00013999,2]
[368676341,1751291926098,-490.0,0.00013999,2]
[368676342,1751291926108,-490.0,0.00013999,2]
[368676343,1751291926119,-519.92,0.00013999,2]
[368676344,1751291926129,-500.0,0.00013999,2]
[368676345,1751291926140,-1673.28,0.00013999,2]
[368676346,1751291926151,-490.0,0.00013999,2]
[368676347,1751291926161,-625.96,0.00013999,2]
[368676348,1751291926175,-500.0,0.00013999,2]
[368676349,1751291926187,-490.0,0.00013999,2]
[368676350,1751291926197,-490.0,0.00013999,2]
[368676351,1751291926208,-576.52911224,0.00013999,2]
[368676352,1751291945229,723.29,0.0001308,2]
[368676353,1751291945421,723.29,0.00013083,2]
[368676354,1751291945822,723.29,0.00013087,2]
[368676355,1751291946065,723.29,0.0001309,2]
[368676356,1751291946263,723.29,0.00013094,2]
[368676357,1751291946601,723.29,0.00013097,2]
[368676358,1751291947032,723.29,0.00013101,2]
[368676359,1751291947510,-477.58922296,0.00013104,2]
[368676360,1751291950574,-245.70077704,0.00013104,2]
[368676361,1751291950600,-54.20178796,0.00013108,2]
[368676362,1751291952362,-405.53082743,0.00013108,2]
[368676364,1751292005701,-263.55738461,0.00013108,2]
[368676365,1751292005754,-723.29,0.00013111,2]
[368676366,1751292005805,-723.29,0.00013115,2]
[368676367,1751292005856,-723.29,0.00013118,2]
[368676368,1751292005908,-723.29,0.00013121,2]
[368676369,1751292005961,-723.29,0.00013125,2]
[368676370,1751292006011,-723.29,0.00013128,2]
[368676371,1751292006063,-70.11523078,0.00013132,2]
[368676372,1751292006359,-653.17476922,0.00013132,2]
[368676373,1751292006410,-723.29,0.00013135,2]
[368676374,1751292006459,-723.29,0.00013139,2]
[368676375,1751292006511,-723.29,0.00013142,2]
[368676376,1751292006561,-723.29,0.00013146,2]
[368676377,1751292006615,-150.0,0.00013756,2]
[368676378,1751292006663,-150.0,0.00013891,2]
[368676379,1751292006706,-1010.0,0.000139,2]
[368676380,1751292006933,-1000.0,0.000139,2]
[368676381,1751292006981,-1000.0,0.000139,2]
[368676382,1751292007029,-150.0,0.00013919,2]
[368676383,1751292007080,-150.0,0.00013934,2]
[368676384,1751292007134,-150.0,0.0001394,2]
[368676385,1751292007187,-300.0,0.0001394,2]
[368676386,1751292007239,-150.0,0.00013942,2]
[368676387,1751292007292,-150.0,0.00013977,2]
[368676388,1751292007791,-1200.0,0.00013145,2]
[368676389,1751292008822,-488.28,0.00013988,2]
[368676390,1751292008949,-3152.22523078,0.0001399,2]
[368676391,1751292009511,-1200.0,0.0001399,2]
[368676392,1751292009564,-7600.0,0.0001399,2]
[368676393,1751292009675,-1183.022616,0.00013821,2]
[368676394,1751292009732,-8816.977384,0.0001399,2]
[368676395,1751292009942,-10000.0,0.0001399,2]
[368676396,1751292009998,-10000.0,0.0001399,2]
[368676397,1751292010130,-10000.0,0.0001399,2]
[368676398,1751292010247,-488.28,0.0001399,2]
[368676399,1751292010299,-9023.44,0.0001399,2]
[368676400,1751292010371,-170.70883608,0.0001399,2]
[368676401,1751292010429,-9658.58232784,0.0001399,2]
[368676402,1751292010439,-170.70883608,0.0001399,2]
[368676403,1751292010544,-10000.0,0.0001399,2]
[368676404,1751292010763,-10000.0,0.0001399,2]
[368676405,1751292010806,-1183.022616,0.0001399,2]
[368676406,1751292010852,-7633.954768,0.0001399,2]
[368676407,1751292010919,-10000.0,0.0001399,2]
[368676408,1751292010999,-250.0,0.00013989,2]
[368676409,1751292011009,-7276.61336002,0.0001399,2]
[368676410,1751292011019,-488.28,0.0001399,2]
[368676411,1751292011029,-490.0,0.00013996,2]
[368676412,1751292011039,-490.0,0.00013996,2]
[368676413,1751292011049,-490.0,0.00013996,2]
[368676414,1751292011059,-515.10663998,0.00013997,2]
[368676415,1751292011115,-445.11336002,0.00013997,2]
[368676416,1751292011610,-741.82,0.00013997,2]
[368676417,1751292011660,-490.0,0.00013997,2]
[368676418,1751292011711,-2924.92327996,0.00013997,2]
[368676419,1751292011789,-796.28672004,0.00013997,2]
[368676420,1751292011800,-1682.24,0.00013997,2]
[368676421,1751292011811,-1324.97,0.00013997,2]
[368676422,1751292011820,-1376.93,0.00013997,2]
[368676423,1751292011829,-217.71663998,0.00013997,2]
[368676424,1751292011901,-1130.53336002,0.00013997,2]
[368676425,1751292011910,-739.12,0.00013997,2]
[368676426,1751292011920,-7143.42,0.00013997,2]
[368676427,1751292011931,-986.92663998,0.00013997,2]
[368676428,1751292011993,-73.02336002,0.00013997,2]
[368676429,1751292012042,-1350.49,0.00013997,2]
[368676430,1751292012093,-3132.08,0.00013997,2]
[368676431,1751292012146,-388.81327996,0.00013997,2]
[368676432,1751292012247,-111.18672004,0.00013997,2]
[368676433,1751292012256,-500.0,0.00013997,2]
[368676434,1751292012266,-500.0,0.00013997,2]
[368676435,1751292012276,-500.0,0.00013997,2]
[368676436,1751292012286,-500.0,0.00013997,2]
[368676437,1751292012295,-500.0,0.00013997,2]
[368676438,1751292012305,-500.0,0.00013997,2]
[368676439,1751292012315,-500.0,0.00013997,2]
[368676440,1751292012324,-500.0,0.00013997,2]
[368676441,1751292012334,-500.0,0.00013997,2]
[368676442,1751292012345,-273.6978039,0.00013997,2]
[368676443,1751292012413,-226.3021961,0.00013997,2]
[368676444,1751292012465,-1736.53,0.00013997,2]
[368676445,1751292012511,-310.2056078,0.00013997,2]
[368676446,1751292012621,-5453.9243922,0.00013997,2]
[368676447,1751292012631,-500.0,0.00013997,2]
[368676448,1751292012641,-678.69,0.00013997,2]
[368676449,1751292012650,-1094.3478039,0.00013997,2]
[368676450,1751292012715,-2198.8221961,0.00013997,2]
[368676451,1751292012762,-490.0,0.00013997,2]
[368676452,1751292012809,-490.0,0.00013997,2]
[368676453,1751292012855,-1500.0,0.00013997,2]
[368676454,1751292012930,-3750.08,0.00013997,2]
[368676455,1751292012939,-1571.0978039,0.00013997,2]
[368676456,1751292012982,-2369.3621961,0.00013997,2]
[368676457,1751292012991,-4140.84,0.00013997,2]
[368676458,1751292013000,-803.16,0.00013997,2]
[368676459,1751292013009,-779.53,0.00013997,2]
[368676460,1751292013019,-490.0,0.00013997,2]
[368676461,1751292013029,-660.57,0.00013997,2]
[368676462,1751292013038,-756.5378039,0.00013997,2]
[368676463,1751292013145,-179.8921961,0.00013997,2]
[368676464,1751292013195,-3250.19,0.00013997,2]
[368676465,1751292013267,-3909.02,0.00013997,2]
[368676466,1751292013277,-1127.47,0.00013997,2]
[368676467,1751292013286,-559.96,0.00013997,2]
[368676468,1751292013296,-973.4678039,0.00013997,2]
[368676469,1751292013919,-871.8121961,0.00013997,2]
[368676470,1751292013932,-1510.45,0.00013997,2]
[368676471,1751292013944,-1433.66,0.00013997,2]
[368676472,1751292013955,-2146.94,0.00013997,2]
[368676473,1751292013967,-490.0,0.00013997,2]
[368676474,1751292013977,-1297.27,0.00013997,2]
[368676475,1751292013989,-490.0,0.00013997,2]
[368676476,1751292014000,-1759.8678039,0.00013997,2]
[368676477,1751292014087,-3258.6521961,0.00013997,2]
[368676478,1751292014156,-1000.0,0.00013998,2]
[368676479,1751292014414,-4591.12,0.00013998,2]
[368676480,1751292014461,-327.76,0.00013998,2]
[368676481,1751292014592,-632.0,0.00013911,2]
[368676482,1751292014640,-162.24,0.00013998,2]
[368676483,1751292014689,-587.03,0.00013998,2]
[368676484,1751292014739,-748.57,0.00013998,2]
[368676485,1751292015396,-1109.19672004,0.00013998,2]
[368676486,1751292015446,-5764.13,0.00013998,2]
[368676487,1751292015520,-4208.15327996,0.00013998,2]
[368676488,1751292015580,-490.0,0.00013998,2]
[368676489,1751292015732,-1344.39,0.00013998,2]
[368676490,1751292015792,-3427.07,0.00013998,2]
[368676491,1751292016183,-1289.95,0.00013998,2]
[368676492,1751292016255,-490.0,0.00013998,2]
[368676493,1751292016320,-490.0,0.00013998,2]
[368676494,1751292016386,-1066.78,0.00013998,2]
[368676495,1751292016457,-490.0,0.00013998,2]
[368676496,1751292016526,-490.0,0.00013998,2]
[368676497,1751292016593,-490.0,0.00013998,2]
[368676498,1751292016809,-713.94,0.00013998,2]
[368676499,1751292016870,-500.0,0.00013998,2]
[368676500,1751292017217,-959.68,0.00013997,2]
[368676501,1751292017428,-872.14,0.00013998,2]
[368676502,1751292017539,-1744.28,0.00013998,2]
[368676503,1751292017631,-3488.56,0.00013998,2]
[368676504,1751292017825,-3022.88,0.00013998,2]
[368676505,1751292017883,-500.0,0.00013998,2]
[368676506,1751292017935,-490.0,0.00013998,2]
[368676507,1751292018194,-3847.05,0.00013998,2]
[368676508,1751292018404,-2305.9,0.00013998,2]
[368676509,1751292018457,-1214.21,0.00013998,2]
[368676510,1751292018512,-490.0,0.00013998,2]
[368676511,1751292018566,-490.0,0.00013998,2]
[368676512,1751292018865,-4341.36,0.00013998,2]
[368676513,1751292018876,-1337.38013174,0.00013998,2]
[368676514,1751292018937,-3771.87986826,0.00013998,2]
[368676515,1751292018990,-1038.51026348,0.00013998,2]
[368676516,1751292019098,-379.21973652,0.00013998,2]
[368676517,1751292019109,-490.0,0.00013998,2]
[368676518,1751292019120,-621.14,0.00013998,2]
[368676519,1751292019132,-3699.25013174,0.00013998,2]
[368676520,1751292019184,-4066.97986826,0.00013998,2]
[368676521,1751292019196,-747.58,0.00013998,2]
[368676522,1751292019209,-5185.44013174,0.00013998,2]
[368676523,1751292019267,-499.78986826,0.00013998,2]
[368676524,1751292020189,-633.18,0.00013998,2]
[368676525,1751292020255,-1321.08,0.00013998,2]
[368676526,1751292020303,-490.0,0.00013998,2]
[368676527,1751292020352,-1914.97026348,0.00013998,2]
[368676528,1751292020419,-281.95973652,0.00013998,2]
[368676529,1751292020465,-490.0,0.00013998,2]
[368676530,1751292020570,-4369.02013174,0.00013998,2]
[368676531,1751292020689,-10000.0,0.00013998,2]
[368676532,1751292020769,-2922.11013174,0.00013998,2]
[368676533,1751292020814,-1286.04314822,0.00013998,2]
[368676534,1751292020850,-490.0,0.00013998,2]
[368676535,1751292020896,-603.69344008,0.00013998,2]
[368676536,1751292020940,-1344.39,0.00013998,2]
[368676537,1751292020991,-431.65314822,0.00013998,2]
[368676538,1751292021038,-490.0,0.00013998,2]
[368676539,1751292021088,-1863.83,0.00013998,2]
[368676540,1751292021138,-490.0,0.00013998,2]
[368676541,1751292021188,-935.82,0.00013998,2]
[368676542,1751292021568,-1673.84,0.00013998,2]
[368676543,1751292021616,-1873.71,0.00013998,2]
[368676544,1751292021663,-490.0,0.00013998,2]
[368676545,1751292021712,-716.72,0.00013998,2]
[368676546,1751292021760,-1.46,0.00013998,2]
[368676547,1751292021829,-488.54,0.00013998,2]
[368676548,1751292021878,-490.0,0.00013998,2]
[368676549,1751292021924,-1502.2,0.00013998,2]
[368676550,1751292021974,-2409.61,0.00013998,2]
[368676551,1751292022256,-1471.81,0.00013998,2]
[368676552,1751292022306,-2485.43,0.00013998,2]
[368676553,1751292022513,-3503.96,0.00013998,2]
[368676554,1751292022559,-601.6,0.00013998,2]
[368676555,1751292022605,-148.50911224,0.00013999,2]
[368676556,1751292022762,-1491.86177552,0.00013999,2]
[368676557,1751292022809,-490.0,0.00013999,2]
[368676558,1751292022855,-490.0,0.00013999,2]
[368676559,1751292022901,-490.0,0.00013999,2]
[368676560,1751292022949,-1504.26,0.00013999,2]
[368676561,1751292022997,-490.0,0.00013999,2]
[368676562,1751292023229,-786.83,0.00013999,2]
[368676563,1751292023279,-856.77,0.00013999,2]
[368676564,1751292023326,-197.12693079,0.00013999,2]
[368676565,1751292023373,-539.08,0.00013999,2]
[368676566,1751292023424,-490.0,0.00013999,2]
[368676567,1751292023472,-151.0,0.00013999,2]
[368676568,1751292023524,-151.0,0.00013999,2]
[368676569,1751292023571,-490.0,0.00013999,2]
[368676570,1751292023618,-841.37,0.00013999,2]
[368676571,1751292023831,-2111.23,0.00013999,2]
[368676572,1751292023882,-490.0,0.00013999,2]
[368676573,1751292023933,-490.0,0.00013999,2]
[368676574,1751292023984,-501.87,0.00013999,2]
[368676575,1751292024037,-1300.82,0.00013999,2]
[368676576,1751292025139,-212.16,0.00013999,2]
[368676577,1751292025189,-490.0,0.00013999,2]
[368676578,1751292025241,-490.0,0.00013999,2]
[368676579,1751292025298,-490.0,0.00013999,2]
[368676580,1751292025348,-490.0,0.00013999,2]
[368676581,1751292025396,-490.0,0.00013999,2]
[368676582,1751292025446,-490.0,0.00013999,2]
[368676583,1751292025495,-1759.81,0.00013999,2]
[368676584,1751292025651,-176.06,0.00013999,2]
[368676585,1751292025660,-1039.27,0.00013999,2]
[368676586,1751292025670,-490.0,0.00013999,2]
[368676587,1751292025680,-490.0,0.00013999,2]
[368676588,1751292025689,-581.93,0.00013999,2]
[368676589,1751292025698,-176.23903323,0.00013999,2]
[368676590,1751292025793,-2126.70096677,0.00013999,2]
[368676591,1751292025804,-490.0,0.00013999,2]
[368676592,1751292025814,-490.0,0.00013999,2]
[368676593,1751292025824,-490.0,0.00013999,2]
[368676594,1751292025834,-490.0,0.00013999,2]
[368676595,1751292025843,-1828.74,0.00013999,2]
[368676596,1751292025853,-490.0,0.00013999,2]
[368676597,1751292025863,-105.99903323,0.00013999,2]
[368676598,1751292025914,-2229.61096677,0.00013999,2]
[368676599,1751292025926,-490.0,0.00013999,2]
[368676600,1751292025937,-303.26903323,0.00013999,2]
[368676601,1751292025973,-500.0,0.00013999,2]
[368676602,1751292026014,-248.30096677,0.00013999,2]
[368676603,1751292026024,-241.69903323,0.00013999,2]
[368676604,1751292026065,-248.30096677,0.00013999,2]
[368676605,1751292026081,-1725.93903323,0.00013999,2]
[368676606,1751292026141,-74.09096677,0.00013999,2]
[368676607,1751292026156,-490.0,0.00013999,2]
[368676608,1751292026173,-2338.55,0.00013999,2]
[368676609,1751292026183,-1437.68,0.00013999,2]
[368676610,1751292026195,-625.21,0.00013999,2]
[368676611,1751292026204,-545.76041734,0.00013999,2]
[368676612,1751292026215,-490.0,0.00013999,2]
[368676613,1751292026225,-151.65861589,0.00013999,2]
[368676614,1751292026308,-890.23138411,0.00013999,2]
[368676615,1751292026318,-490.0,0.00013999,2]
[368676616,1751292026329,-490.0,0.00013999,2]
[368676617,1751292026339,-435.66861589,0.00013999,2]
[368676618,1751292026454,-54.33138411,0.00013999,2]
[368676619,1751292026464,-516.25,0.00013999,2]
[368676620,1751292026474,-490.0,0.00013999,2]
[368676621,1751292026484,-153.62861589,0.00013999,2]
[368676622,1751292026581,-490.0,0.00013999,2]
[368676623,1751292026615,-490.0,0.00013999,2]
[368676624,1751292026664,-244.16138411,0.00013999,2]
[368676625,1751292026674,-490.0,0.00013999,2]
[368676626,1751292026683,-265.61861589,0.00013999,2]
[368676627,1751292026845,-1158.42,0.00013997,2]
[368676628,1751292026855,-224.38138411,0.00013999,2]
[368676629,1751292026865,-1833.3,0.00013999,2]
[368676630,1751292026875,-555.77848415,0.00013999,2]
[368676631,1751292026911,-253.84151585,0.00013999,2]
[368676632,1751292026921,-490.0,0.00013999,2]
[368676633,1751292026931,-673.88848415,0.00013999,2]
[368676634,1751292026979,-266.22151585,0.00013999,2]
[368676635,1751292026989,-151.0,0.00013999,2]
[368676636,1751292026999,-82.56835241,0.00013999,2]
[368676637,1751292027038,-152.32079159,0.00013999,2]
[368676638,1751292027050,-480.85920841,0.00013999,2]
[368676639,1751292027167,-1321.08,0.00013999,2]
[368676640,1751292027226,-275.93079159,0.00013999,2]
[368676641,1751292027236,-151.0,0.00013999,2]
[368676642,1751292027246,-63.06920841,0.00013999,2]
[368676643,1751292027283,-133.47673759,0.00013999,2]
[368676644,1751292027294,-490.0,0.00013999,2]
[368676645,1751292027305,-1573.45326241,0.00013999,2]
[368676646,1751292027340,-281.95973652,0.00013999,2]
[368676647,1751292027375,-490.0,0.00013999,2]
[368676648,1751292027408,-49.42700107,0.00013999,2]
[368676649,1751292027418,-1127.4,0.00013999,2]
[368676650,1751292027428,-610.83878873,0.00013999,2]
[368676651,1751292027439,-490.0,0.00013999,2]
[368676652,1751292027450,-782.51,0.00013999,2]
[368676653,1751292027460,-918.34,0.00013999,2]
[368676654,1751292027470,-968.17,0.00013999,2]
[368676655,1751292027480,-517.16,0.00013999,2]
[368676656,1751292027490,-490.0,0.00013999,2]
[368676657,1751292027500,-2502.23473716,0.00013999,2]
[368676658,1751292027557,-131.27526284,0.00013999,2]
[368676659,1751292027567,-740.09,0.00013999,2]
[368676660,1751292027578,-832.74,0.00013999,2]
[368676661,1751292027588,-1266.14,0.00013999,2]
[368676662,1751292027598,-2394.06,0.00013999,2]
[368676663,1751292027608,-494.79,0.00013999,2]
[368676664,1751292027618,-183.70222963,0.00013999,2]
[368676665,1751292027628,-1035.09237579,0.00013999,2]
[368676666,1751292027676,-431.65314822,0.00013999,2]
[368676667,1751292027720,-89.75447599,0.00013999,2]
[368676668,1751292027730,-400.24552401,0.00013999,2]
[368676669,1751292027771,-655.38447599,0.00013999,2]
[368676670,1751292027780,-496.33,0.00013999,2]
[368676671,1751292027790,-631.87,0.00013999,2]
[368676672,1751292027799,-80.24552401,0.00013999,2]
[368676673,1751292027840,-458.83447599,0.00013999,2]
[368676674,1751292027851,-31.16552401,0.00013999,2]
[368676675,1751292027885,-539.89447599,0.00013999,2]
[368676676,1751292027895,-395.92552401,0.00013999,2]
[368676677,1751292027932,-368.83447599,0.00013999,2]
[368676678,1751292027942,-597.21,0.00013999,2]
[368676679,1751292027952,-611.34922757,0.00013999,2]
[368676680,1751292028114,-121.67077243,0.00013999,2]
[368676681,1751292028124,-1552.16922757,0.00013999,2]
[368676682,1751292028174,-135.80077243,0.00013999,2]
[368676683,1751292028184,-1026.47,0.00013999,2]
[368676684,1751292028195,-505.26,0.00013999,2]
[368676685,1751292028205,-206.17922757,0.00013999,2]
[368676686,1751292028329,-283.82077243,0.00013999,2]
[368676687,1751292028338,-206.17922757,0.00013999,2]
[368676688,1751292028372,-524.90077243,0.00013999,2]
[368676689,1751292028382,-191.81922757,0.00013999,2]
[368676690,1751292028424,-298.18077243,0.00013999,2]
[368676691,1751292028433,-151.0,0.00013999,2]
[368676692,1751292028443,-40.81922757,0.00013999,2]
[368676693,1751292028488,-226.78689243,0.00013999,2]
[368676694,1751292028498,-261.75310757,0.00013999,2]
[368676695,1751292028532,-490.0,0.00013999,2]
[368676696,1751292028567,-29.30689243,0.00013999,2]
[368676697,1751292028577,-153.097274,0.00013999,2]
[368676698,1751292028586,-490.0,0.00013999,2]
[368676699,1751292028596,-829.79583357,0.00013999,2]
[368676700,1751292028642,-65.55416643,0.00013999,2]
[368676701,1751292028653,-490.0,0.00013999,2]
[368676702,1751292028663,-744.28,0.00013999,2]
[368676703,1751292028673,-490.0,0.00013999,2]
[368676704,1751292028682,-490.0,0.00013999,2]
[368676705,1751292028693,-129.77583357,0.00013999,2]
[368676706,1751292028735,-219.3,0.00013999,2]
[368676707,1751292029340,-140.92416643,0.00013999,2]
[368676708,1751292029350,-490.0,0.00013999,2]
[368676709,1751292029360,-490.0,0.00013999,2]
[368676710,1751292029370,-350.88583357,0.00013999,2]
[368676711,1751292029411,-139.11416643,0.00013999,2]
[368676712,1751292029421,-490.0,0.00013999,2]
[368676713,1751292029430,-490.0,0.00013999,2]
[368676714,1751292029439,-151.0,0.00013999,2]
[368676715,1751292029449,-1215.31583357,0.00013999,2]
[368676716,1751292029490,-853.42416643,0.00013999,2]
[368676717,1751292029499,-490.0,0.00013999,2]
[368676718,1751292029509,-742.09583357,0.00013999,2]
[368676719,1751292029551,-1252.55416643,0.00013999,2]
[368676720,1751292029561,-2251.40583357,0.00013999,2]
[368676721,1751292029603,-439.12416643,0.00013999,2]
[368676722,1751292029612,-162.47583357,0.00013999,2]
[368676723,1751292029660,-327.52416643,0.00013999,2]
[368676724,1751292029669,-500.0,0.00013999,2]
[368676725,1751292029678,-568.18,0.00013999,2]
[368676726,1751292029688,-244.66672133,0.00013999,2]
[368676727,1751292029728,-1491.86177552,0.00013999,2]
[368676728,1751292029772,-490.0,0.00013999,2]
[368676729,1751292029810,-191.81150315,0.00013999,2]
[368676730,1751292029819,-298.18849685,0.00013999,2]
[368676731,1751292029919,-490.0,0.00013999,2]
[368676732,1751292029993,-305.08150315,0.00013999,2]
[368676733,1751292030005,-151.0,0.00013999,2]
[368676734,1751292030014,-151.0,0.00013999,2]
[368676735,1751292030023,-897.17849685,0.00013999,2]
[368676736,1751292030078,-350.36150315,0.00013999,2]
[368676737,1751292030087,-139.63849685,0.00013999,2]
[368676738,1751292030164,-87.75644896,0.00013999,2]
[368676739,1751292030223,-786.83,0.00013997,2]
[368676740,1751292030256,-252.45,0.00013997,2]
[368676741,1751292030266,-262.60505419,0.00013999,2]
[368676742,1751292030276,-341.71494581,0.00013999,2]
[368676743,1751292030308,-148.28505419,0.00013999,2]
[368676744,1751292030318,-48.8418766,0.00013999,2]
[368676745,1751292030357,-441.1581234,0.00013999,2]
[368676746,1751292030367,-97.9218766,0.00013999,2]
[368676747,1751292030404,-490.0,0.00013999,2]
[368676748,1751292030443,-151.0,0.00013998,2]
[368676749,1751292030474,-151.0,0.00013998,2]
[368676750,1751292030516,-188.0,0.00013998,2]
[368676751,1751292030525,-302.0,0.00013999,2]
[368676752,1751292030564,-263.3781234,0.00013999,2]
[368676753,1751292030574,-490.0,0.00013999,2]
[368676754,1751292030583,-87.9918766,0.00013999,2]
[368676755,1751292030671,-402.0081234,0.00013999,2]
[368676756,1751292030681,-490.0,0.00013999,2]
[368676757,1751292030691,-101.63801502,0.00013999,2]
[368676758,1751292030748,-388.36198498,0.00013999,2]
[368676759,1751292030759,-1722.86801502,0.00013999,2]
[368676760,1751292030800,-490.0,0.00013999,2]
[368676761,1751292030896,-490.0,0.00013999,2]
[368676762,1751292030937,-70.85198498,0.00013999,2]
[368676763,1751292030946,-431.01801502,0.00013999,2]
[368676764,1751292030980,-58.98198498,0.00013999,2]
[368676765,1751292030990,-530.98,0.00013999,2]
[368676766,1751292031000,-602.49,0.00013999,2]
[368676767,1751292031009,-320.52801502,0.00013999,2]
[368676768,1751292031195,-212.16,0.00013999,2]
[368676769,1751292031244,-91.72198498,0.00013999,2]
[368676770,1751292031253,-398.27801502,0.00013999,2]
[368676771,1751292031387,-490.0,0.00013999,2]
[368676772,1751292031452,-20.85198498,0.00013999,2]
[368676773,1751292031462,-469.14801502,0.00013999,2]
[368676774,1751292031565,-20.85198498,0.00013999,2]
[368676775,1751292031575,-469.14801502,0.00013999,2]
[368676776,1751292031613,-20.85198498,0.00013999,2]
[368676777,1751292031624,-469.14801502,0.00013999,2]
[368676778,1751292031665,-490.0,0.00013999,2]
[368676779,1751292031710,-158.84198498,0.00013999,2]
[368676780,1751292031721,-490.0,0.00013999,2]
[368676781,1751292031730,-490.0,0.00013999,2]
[368676782,1751292031740,-608.27830419,0.00013999,2]
[368676783,1751292031750,-188.74971083,0.00013999,2]
[368676784,1751292041244,31306.67,0.00013098,2]
[368676785,1751292085819,219.0,0.0002609,120]
[368676786,1751292085849,150.5,0.0002609,120]
[368676787,1751292086312,150.5,0.0002608,120]
[368676788,1751292086368,219.0,0.0002608,120]
[368676789,1751292086742,219.0,0.0002607,120]
[368676790,1751292086792,181.29,0.0002607,120]
[368676791,1751292087155,219.0,0.0002609,120]
[368676792,1751292087590,219.0,0.0002608,120]
[368676793,1751292088026,219.0,0.0002607,120]
[368676794,1751292088922,219.0,0.0002609,120]
[368676795,1751292089558,219.0,0.0002608,120]
[368676796,1751292091032,219.0,0.0002609,120]
[368676797,1751292091650,219.73,0.0002608,120]
[368676799,1751292169958,500.0,0.000273,120]
[368676800,1751292192397,529.0,0.000273,120]
[368676801,1751292257944,1125.56059914,0.00013996,5]
[368676802,1751292475317,1000.0,0.00015,30]